bitfinex/quotes_SOLUSD_20250108
["timestamp","ask_amount","ask_price","bid_price","bid_amount"]
[1736358391245,20.0,192.87,192.8,0.77742348]
[1736358391472,7.3464,192.9,192.8,0.77742348]
[1736358391679,7.3464,192.9,192.81,50.47327572]
[1736358391881,7.3464,192.9,192.82,0.77748729]
[1736358392947,7.3464,192.9,192.79,51.2508349]
[1736358393162,20.0,192.87,192.79,0.77755918]
[1736358393378,20.0,192.87,192.77,0.77775099]
[1736358393579,20.0,192.87,192.77,0.77761446]
[1736358394278,7.3464,192.9,192.77,51.25089018]
[1736358394578,20.0,192.87,192.77,51.25089018]
[1736358394877,20.0,192.87,192.79,50.47327572]
[1736358395049,20.0,192.87,192.8,0.77762941]
[1736358395246,7.3464,192.9,192.81,50.47327572]
[1736358395448,7.3464,192.9,192.82,51.25075179]
[1736358395649,7.3464,192.9,192.84,50.47327572]
[1736358395873,1.8175,192.94,192.86,50.47327572]
[1736358396183,1.8175,192.94,192.87,0.77730061]
[1736358396674,1.8175,192.94,192.89,50.47327572]
[1736358396889,7.3937,192.96,192.9,0.77720329]
[1736358397258,7.3937,192.96,192.9,51.25047901]
[1736358397457,1.861,193.0,192.91,23.776884]
[1736358397674,1.861,193.0,192.92,0.77705194]
[1736358398048,1.861,193.0,192.88,31.00372357]
[1736358398255,20.0,192.98,192.89,0.77719489]
[1736358398450,20.0,192.98,192.87,0.77732206]
[1736358399155,20.0,192.98,192.88,54.78060757]
[1736358399351,20.0,192.98,192.89,31.78090926]
[1736358399656,20.0,192.98,192.89,0.77718569]
[1736358399860,20.0,192.98,192.89,31.78090926]
[1736358400054,1.861,193.0,192.95,8.13882417]
[1736358400257,1.861,193.0,192.91,8.13882417]
[1736358400789,1.861,193.0,192.91,39.14254774]
[1736358400984,1.861,193.0,192.92,0.77717571]
[1736358401479,1.861,193.0,192.91,8.13882417]
[1736358402706,20.0,192.98,192.91,8.13882417]
[1736358403476,20.0,192.98,192.9,8.13882417]
[1736358404100,20.0,192.98,192.87,8.13882417]
[1736358404501,20.0,192.97,192.88,8.13882417]
[1736358404701,20.0,192.93,192.88,8.13882417]
[1736358404877,20.0,192.93,192.87,8.13882417]
[1736358405710,20.0,192.93,192.86,8.13882417]
[1736358406009,20.0,192.93,192.87,8.13882417]
[1736358406379,20.0,192.93,192.88,12.00073487]
[1736358406692,20.0,192.93,192.88,3.8619107]
[1736358407408,20.0,192.87,192.86,8.13882417]
[1736358407582,20.0,192.87,192.86,4.40402417]
[1736358407915,20.0,192.87,192.82,4.40402417]
[1736358408404,20.0,192.86,192.78,6.43651784]
[1736358408776,20.0,192.87,192.77,6.43651784]
[1736358408974,20.0,192.82,192.77,6.43651784]
[1736358409315,1.8297,192.81,192.77,6.43651784]
[1736358409786,21.8297,192.81,192.77,6.43651784]
[1736358409993,21.8297,192.81,192.77,4.52081784]
[1736358410180,20.0,192.77,192.65,48.83294502]
[1736358410374,20.0,192.76,192.65,48.83294502]
[1736358410600,5.0,192.75,192.61,11.5855615]
[1736358410798,20.0,192.71,192.61,11.5855615]
[1736358410992,20.0,192.71,192.55,32.91272357]
[1736358411208,20.0,192.71,192.55,1.909]
[1736358411383,20.0,192.7,192.54,0.77857136]
[1736358411783,20.0,192.7,192.54,31.78229493]
[1736358412315,20.0,192.69,192.54,0.77857136]
[1736358412610,6.9581,192.65,192.53,3.67]
[1736358412784,20.0,192.62,192.53,3.67]
[1736358412989,20.0,192.6,192.53,3.67]
[1736358413303,5.0,192.55,192.45,16.27764834]
[1736358413624,5.0,192.56,192.39,0.7792602]
[1736358413775,20.0,192.54,192.39,0.7792602]
[1736358413976,20.0,192.54,192.38,31.78301741]
[1736358414176,20.0,192.54,192.38,0.77929384]
[1736358414411,20.0,192.5,192.37,16.27764834]
[1736358414787,20.0,192.5,192.31,31.78313666]
[1736358414788,20.0,192.49,192.31,31.78313666]
[1736358415115,20.0,192.48,192.31,0.77941309]
[1736358415294,20.0,192.48,192.31,31.78313666]
[1736358415629,25.0,192.49,192.31,51.47854098]
[1736358415917,20.0,192.48,192.32,23.776884]
[1736358416115,7.1345,192.53,192.37,50.69912789]
[1736358416282,7.1345,192.53,192.38,50.69912789]
[1736358416477,20.0,192.5,192.38,50.69912789]
[1736358416677,20.0,192.5,192.37,50.69912789]
[1736358416887,20.0,192.5,192.37,50.47845406]
[1736358417092,7.1345,192.53,192.42,50.69912789]
[1736358417322,7.1345,192.53,192.46,50.69912789]
[1736358417692,7.6432,192.6,192.47,51.47813937]
[1736358418331,0.77932617,192.59,192.45,50.69912789]
[1736358418492,20.0,192.57,192.43,50.69912789]
[1736358418694,20.0,192.57,192.43,0.77907722]
[1736358418695,0.77932617,192.56,192.43,0.77907722]
[1736358418923,0.77932617,192.56,192.41,50.69912789]
[1736358419307,20.77932617,192.56,192.41,50.69912789]
[1736358419496,20.77932617,192.56,192.43,50.69912789]
[1736358419927,20.0,192.57,192.43,50.69912789]
[1736358420105,0.77932617,192.56,192.42,50.69912789]
[1736358420305,25.77932617,192.56,192.37,50.69912789]
[1736358420507,20.0,192.52,192.36,51.47822938]
[1736358420827,0.77932617,192.54,192.38,50.69912789]
[1736358421128,0.77932617,192.54,192.39,50.69912789]
[1736358421321,20.77932617,192.54,192.38,51.47839663]
[1736358421707,0.77932617,192.54,192.39,50.69912789]
[1736358422033,0.77932617,192.54,192.4,0.7792281]
[1736358422332,0.77932617,192.54,192.37,74.47601189]
[1736358422533,0.77932617,192.54,192.39,50.69912789]
[1736358422704,5.0,192.59,192.42,50.69912789]
[1736358422903,5.0,192.58,192.41,50.69912789]
[1736358423211,5.0,192.58,192.4,51.47831771]
[1736358423414,17.6432,192.58,192.4,50.69912789]
[1736358423610,7.6432,192.58,192.41,50.69912789]
[1736358423816,9.71899872,192.6,192.45,50.69912789]
[1736358424014,9.71899872,192.6,192.45,51.47809516]
[1736358424215,9.71899872,192.6,192.43,23.776884]
[1736358424216,9.71899872,192.6,192.43,50.69912789]
[1736358424452,9.71899872,192.6,192.44,50.69912789]
[1736358424606,20.0,192.54,192.39,50.69912789]
[1736358424800,20.0,192.54,192.38,50.69912789]
[1736358425116,5.0,192.56,192.39,0.77928731]
[1736358425322,20.0,192.53,192.36,50.69912789]
[1736358425534,20.0,192.53,192.37,0.77938837]
[1736358425831,20.0,192.5,192.33,50.69912789]
[1736358426128,20.0,192.5,192.28,1.7327]
[1736358426129,20.0,192.48,192.3,50.69912789]
[1736358426430,36.9683,192.54,192.33,50.69912789]
[1736358426431,20.0,192.49,192.33,50.69912789]
[1736358426618,20.0,192.49,192.33,51.47860192]
[1736358427009,20.0,192.49,192.33,0.77947403]
[1736358427232,20.0,192.49,192.3,50.69912789]
[1736358427233,20.0,192.44,192.28,1.7327]
[1736358427410,6.9683,192.41,192.26,0.77956398]
[1736358427744,20.0,192.38,192.22,1.8497]
[1736358428030,20.0,192.38,192.21,17.05744232]
[1736358428219,20.0,192.37,192.21,17.05744232]
[1736358428406,20.0,192.37,192.27,50.69912789]
[1736358428607,6.9683,192.41,192.26,50.69912789]
[1736358428810,6.9683,192.41,192.26,51.47891351]
[1736358429114,20.0,192.38,192.26,51.47891351]
[1736358429321,20.0,192.38,192.26,50.69912789]
[1736358429718,20.0,192.38,192.25,50.69912789]
[1736358429915,20.0,192.38,192.26,50.69912789]
[1736358430116,20.0,192.38,192.26,51.47899452]
[1736358430435,20.0,192.38,192.26,0.77986663]
[1736358430738,20.0,192.38,192.24,0.14110461]
[1736358430931,6.9683,192.41,192.25,50.69912789]
[1736358431403,23.776884,192.4,192.24,0.14110461]
[1736358431606,5.0,192.39,192.24,0.14110461]
[1736358431812,33.776884,192.36,192.24,0.14110461]
[1736358432039,7.5923,192.37,192.24,0.14110461]
[1736358432804,20.0,192.34,192.24,0.14110461]
[1736358433335,23.776884,192.31,192.2,3.67]
[1736358433521,28.776884,192.31,192.2,3.67]
[1736358433716,7.17501647,192.32,192.2,3.67]
[1736358433928,12.17501647,192.32,192.2,3.67]
[1736358434236,28.776884,192.27,192.08,55.69912789]
[1736358434543,5.0,192.31,192.12,55.69912789]
[1736358434830,2.06959968,192.31,192.15,5.0]
[1736358435041,5.0,192.31,192.13,5.0]
[1736358435213,5.0,192.3,192.14,5.0]
[1736358435412,20.0,192.29,192.14,5.0]
[1736358435926,5.0,192.34,192.17,5.0]
[1736358436132,20.0,192.33,192.18,5.0]
[1736358436318,20.0,192.29,192.18,5.0]
[1736358437025,20.0,192.29,192.15,5.0]
[1736358437204,20.0,192.25,192.1,5.0]
[1736358437408,20.0,192.21,192.1,5.0]
[1736358437714,20.0,192.21,192.06,15.0]
[1736358437913,20.0,192.21,192.11,5.0]
[1736358439342,20.0,192.21,192.07,5.0]
[1736358440051,20.0,192.21,192.1,5.0]
[1736358440251,20.0,192.21,192.06,65.69912789]
[1736358440563,20.0,192.21,192.1,5.0]
[1736358440936,20.0,192.21,192.07,5.0]
[1736358441130,20.0,192.21,192.06,10.0]
[1736358441558,20.0,192.21,192.08,5.0]
[1736358441748,20.0,192.21,192.1,5.0]
[1736358441929,20.0,192.21,192.11,55.69912789]
[1736358442330,20.0,192.21,192.1,50.69912789]
[1736358442551,20.0,192.21,192.11,55.69912789]
[1736358442859,20.0,192.21,192.08,55.69912789]
[1736358443036,20.0,192.21,192.07,5.0]
[1736358443242,20.0,192.21,192.06,15.0]
[1736358443571,20.0,192.21,192.08,5.0]
[1736358443940,20.0,192.21,192.06,15.0]
[1736358444133,20.0,192.21,192.06,10.0]
[1736358444134,31.389984,192.19,192.06,10.0]
[1736358444351,20.0,192.16,192.06,10.0]
[1736358445148,20.0,192.12,192.06,10.0]
[1736358445961,20.0,192.11,192.06,10.0]
[1736358446161,23.776884,192.12,192.06,2.2876]
[1736358446369,24.05399566,192.13,192.06,2.2876]
[1736358446569,24.05399566,192.11,192.04,10.0]
[1736358446769,30.27711166,192.09,191.9,5.0]
[1736358446998,3.4626,192.1,191.94,5.0]
[1736358447276,3.4626,192.1,191.93,4.72288834]
[1736358447480,3.4626,192.1,191.94,4.72288834]
[1736358447644,3.4626,192.1,191.93,5.0]
[1736358447848,0.27711166,192.08,191.89,5.0]
[1736358448052,20.0,192.02,191.85,9.72288834]
[1736358448286,20.0,192.02,191.86,5.0]
[1736358448461,20.0,192.02,191.89,9.72288834]
[1736358448664,30.0,192.08,191.9,4.72288834]
[1736358448665,30.27711166,192.08,191.9,4.72288834]
[1736358448989,20.0,192.03,191.87,5.0]
[1736358449148,72.02101334,192.22,191.85,4.72288834]
[1736358449149,20.0,191.99,191.85,4.72288834]
[1736358449348,20.0,191.99,191.85,5.0]
[1736358449863,20.0,191.99,191.84,4.72288834]
[1736358449864,20.0,191.99,191.91,4.72288834]
[1736358450079,7.8788,192.02,191.92,4.72288834]
[1736358450457,7.8788,192.02,191.94,9.72288834]
[1736358450785,7.8788,192.14,191.97,4.72288834]
[1736358450983,20.0,192.1,191.95,5.0]
[1736358451189,23.776884,192.13,191.95,5.0]
[1736358451363,23.776884,192.11,191.91,9.72288834]
[1736358451571,20.0,192.01,191.92,4.72288834]
[1736358451773,20.0,192.01,191.92,9.72288834]
[1736358452088,20.0,192.01,191.95,4.72288834]
[1736358452253,7.8788,192.04,191.95,4.72288834]
[1736358452460,7.8788,192.04,191.96,4.72288834]
[1736358452680,7.8788,192.04,191.96,9.72288834]
[1736358452887,7.8788,192.04,191.97,4.72288834]
[1736358453088,7.8788,192.04,191.95,9.72288834]
[1736358453265,7.8788,192.04,191.97,4.72288834]
[1736358453583,7.8788,192.11,192.0,4.72288834]
[1736358453780,7.8788,192.11,192.04,4.72288834]
[1736358454085,7.8788,192.11,192.0,4.72288834]
[1736358454269,7.8788,192.11,191.99,9.72288834]
[1736358454455,7.8788,192.11,191.99,4.72288834]
[1736358454662,20.0,192.08,192.01,5.0]
[1736358455195,20.0,192.08,191.99,4.72288834]
[1736358455485,20.0,192.08,191.98,4.72288834]
[1736358455691,20.0,192.08,191.98,9.72288834]
[1736358456182,20.0,192.08,191.94,50.69912789]
[1736358456183,20.0,192.08,191.94,5.0]
[1736358456358,20.0,192.08,191.95,9.72288834]
[1736358456558,20.0,192.08,191.97,4.72288834]
[1736358456771,20.0,192.08,191.98,4.72288834]
[1736358456980,20.0,192.08,192.0,4.72288834]
[1736358457183,20.0,192.08,191.96,9.72288834]
[1736358457383,20.0,192.08,191.99,4.72288834]
[1736358457691,20.0,192.08,192.0,4.72288834]
[1736358457898,7.8788,192.11,192.02,4.72288834]
[1736358458058,7.8788,192.11,192.04,4.72288834]
[1736358458386,7.5637,192.19,192.08,4.72288834]
[1736358458689,7.5637,192.19,192.06,4.72288834]
[1736358458878,20.0,192.16,192.04,23.776884]
[1736358459062,20.0,192.16,192.02,5.0]
[1736358459384,20.0,192.16,191.92,1.7947]
[1736358459385,23.776884,192.15,192.0,5.0]
[1736358459568,20.0,192.12,191.99,9.72288834]
[1736358459763,20.0,192.12,192.01,9.72288834]
[1736358459970,7.5637,192.19,192.05,9.72288834]
[1736358460167,7.5637,192.19,192.03,4.72288834]
[1736358460374,7.5637,192.19,192.05,4.72288834]
[1736358460783,9.70130942,192.19,192.05,9.72288834]
[1736358460958,20.0,192.16,192.05,4.72288834]
[1736358461160,9.70130942,192.19,192.07,5.0]
[1736358461358,9.70130942,192.19,192.09,4.72288834]
[1736358461572,9.70130942,192.19,192.07,5.0]
[1736358461769,20.0,192.15,192.05,9.72288834]
[1736358461967,20.0,192.15,192.05,4.72288834]
[1736358462173,20.0,192.15,192.03,5.0]
[1736358462174,20.0,192.15,192.04,4.72288834]
[1736358462484,20.0,192.15,192.05,4.72288834]
[1736358462693,20.0,192.15,192.08,4.72288834]
[1736358462995,9.70130942,192.19,192.12,4.72288834]
[1736358462996,7.5637,192.19,192.12,4.72288834]
[1736358463301,20.857507,192.21,192.12,4.72288834]
[1736358463485,0.06763027,192.25,192.14,9.72288834]
[1736358463789,20.92183727,192.25,192.15,9.72288834]
[1736358463973,20.854207,192.25,192.15,4.72288834]
[1736358464164,20.854207,192.25,192.14,5.0]
[1736358464365,23.776884,192.24,192.08,9.72288834]
[1736358464596,23.776884,192.24,192.09,4.72288834]
[1736358464768,20.0,192.22,192.1,5.0]
[1736358465174,20.0,192.22,192.08,5.0]
[1736358466207,20.0,192.22,192.12,4.72288834]
[1736358466366,20.0,192.22,192.1,9.72288834]
[1736358466561,20.0,192.22,192.09,4.72288834]
[1736358466782,20.0,192.22,192.1,4.72288834]
[1736358466984,20.0,192.22,192.09,9.72288834]
[1736358467175,20.0,192.18,192.07,9.72288834]
[1736358467387,20.0,192.18,192.07,5.0]
[1736358467589,20.0,192.18,192.07,9.72288834]
[1736358467979,20.0,192.18,192.07,5.0]
[1736358468371,50.0,192.22,192.07,5.0]
[1736358468602,20.0,192.21,192.07,5.0]
[1736358468767,20.0,192.2,192.07,5.0]
[1736358468968,20.0,192.19,192.07,5.0]
[1736358469975,20.0,192.2,192.07,5.0]
[1736358470209,20.0,192.14,192.01,4.72288834]
[1736358470500,20.0,192.14,191.96,4.72288834]
[1736358470501,20.0,192.09,191.96,4.72288834]
[1736358470721,20.0,192.09,191.98,4.72288834]
[1736358471003,20.0,192.13,192.01,4.72288834]
[1736358471200,20.0,192.13,192.02,5.0]
[1736358471393,20.0,192.14,192.02,5.0]
[1736358471800,20.0,192.14,192.02,9.72288834]
[1736358472103,20.0,192.14,192.01,5.0]
[1736358472300,20.0,192.14,192.0,4.72288834]
[1736358472604,20.0,192.14,192.01,4.72288834]
[1736358472778,20.0,192.14,192.01,9.72288834]
[1736358473101,20.0,192.14,192.0,5.0]
[1736358473497,39.42854486,192.17,191.98,5.0]
[1736358473498,20.0,192.12,191.98,5.0]
[1736358473689,20.0,192.12,191.98,4.72288834]
[1736358473998,20.0,192.12,191.97,5.0]
[1736358473999,20.0,192.09,191.97,5.0]
[1736358474197,20.0,192.09,191.98,9.72288834]
[1736358474504,20.0,192.09,192.0,9.72288834]
[1736358474806,20.0,192.12,192.01,5.0]
[1736358475190,20.0,192.11,192.0,5.0]
[1736358475390,20.0,192.11,191.98,9.72288834]
[1736358475585,20.0,192.11,192.01,5.0]
[1736358475785,20.0,192.13,191.99,5.0]
[1736358476001,20.0,192.12,191.99,5.0]
[1736358476177,20.0,192.11,191.98,5.0]
[1736358476496,20.0,192.11,191.97,5.0]
[1736358477113,43.776884,192.11,191.97,5.0]
[1736358477308,30.0,192.12,191.95,5.0]
[1736358477615,20.0,192.09,191.95,5.0]
[1736358477916,20.0,192.09,191.96,4.72288834]
[1736358478102,20.0,192.09,191.95,5.0]
[1736358478409,20.0,192.11,191.97,5.0]
[1736358478617,20.0,192.11,191.98,5.0]
[1736358478815,20.0,192.11,191.97,5.0]
[1736358479114,20.0,192.07,191.95,5.0]
[1736358479490,20.0,192.07,191.94,4.72288834]
[1736358479685,20.0,192.07,191.93,5.0]
[1736358479908,20.0,192.07,191.94,4.72288834]
[1736358480310,20.0,192.03,191.92,6.8993]
[1736358481311,20.0,192.03,191.87,4.72288834]
[1736358481507,20.0,192.02,191.86,6.63518834]
[1736358481795,7.9169,192.06,191.83,4.72288834]
[1736358481796,20.0,191.98,191.83,4.72288834]
[1736358482003,27.7984,191.94,191.81,4.72288834]
[1736358482295,27.7984,191.94,191.82,4.72288834]
[1736358482499,27.7984,191.94,191.81,4.72288834]
[1736358482815,20.0,191.9,191.77,4.72288834]
[1736358482989,20.0,191.89,191.76,4.72288834]
[1736358483418,20.0,191.89,191.76,9.72288834]
[1736358483624,20.0,191.89,191.77,5.0]
[1736358483921,20.0,191.9,191.78,5.0]
[1736358484098,20.0,191.89,191.75,4.72288834]
[1736358484293,20.0,191.85,191.73,1.952]
[1736358484705,10.29648025,191.94,191.78,9.72288834]
[1736358484910,10.29648025,191.94,191.8,5.0]
[1736358485108,9.93708025,191.94,191.82,9.72288834]
[1736358485311,9.93708025,191.94,191.83,5.0]
[1736358485710,9.93708025,191.94,191.85,9.72288834]
[1736358485711,7.7984,191.94,191.85,9.72288834]
[1736358486026,7.7984,191.94,191.82,31.30930899]
[1736358486027,7.997,191.99,191.87,9.72288834]
[1736358486326,7.997,191.99,191.86,5.0]
[1736358486701,20.0,191.96,191.86,5.0]
[1736358487009,20.0,191.96,191.85,5.0]
[1736358487211,20.0,191.96,191.86,5.0]
[1736358487393,7.997,191.99,191.88,5.0]
[1736358487600,7.997,191.99,191.93,5.0]
[1736358487902,0.06763027,192.0,191.89,9.72288834]
[1736358488118,0.06763027,192.0,191.88,5.0]
[1736358488514,0.06763027,192.0,191.9,5.0]
[1736358488698,0.06763027,192.0,191.89,5.0]
[1736358488902,0.06763027,192.0,191.88,4.72288834]
[1736358488903,0.06763027,192.0,191.9,5.0]
[1736358489203,0.06763027,192.0,191.91,5.0]
[1736358489601,0.06763027,192.0,191.92,5.0]
[1736358489794,0.06763027,192.0,191.93,5.0]
[1736358490214,0.06763027,192.0,191.85,4.72288834]
[1736358490417,0.06763027,192.0,191.86,5.0]
[1736358490608,0.06763027,192.0,191.76,0.78136031]
[1736358490609,20.0,191.9,191.78,4.72288834]
[1736358490801,20.0,191.9,191.77,9.72288834]
[1736358491028,20.0,191.9,191.81,5.0]
[1736358491217,20.0,191.9,191.78,5.0]
[1736358491419,23.776884,191.89,191.77,5.0]
[1736358491720,20.0,191.86,191.75,9.72288834]
[1736358492037,30.0,191.92,191.73,1.969]
[1736358492038,43.776884,191.85,191.73,1.969]
[1736358492201,43.776884,191.85,191.7,4.72288834]
[1736358492402,23.776884,191.8,191.68,4.72288834]
[1736358492601,23.776884,191.8,191.67,2.0064]
[1736358493016,20.0,191.79,191.67,2.0064]
[1736358493420,20.0,191.75,191.67,2.0064]
[1736358493735,20.0,191.75,191.71,9.72288834]
[1736358493906,19.767289,191.84,191.73,9.72288834]
[1736358494100,19.767289,191.84,191.71,5.0]
[1736358494298,20.0,191.8,191.68,5.0]
[1736358494529,43.776884,191.8,191.67,2.0064]
[1736358494737,20.0,191.77,191.67,7.0064]
[1736358495026,20.0,191.78,191.66,4.72288834]
[1736358495232,20.0,191.78,191.66,9.72288834]
[1736358495772,2.11820503,191.8,191.67,9.72288834]
[1736358496103,20.0,191.78,191.67,9.72288834]
[1736358496504,19.767289,191.84,191.73,4.72288834]
[1736358496812,19.767289,191.84,191.73,5.0]
[1736358496813,0.06763027,191.82,191.73,5.0]
[1736358497013,0.06763027,191.82,191.74,9.72288834]
[1736358497524,0.06763027,191.82,191.71,1.9174]
[1736358497525,0.06763027,191.82,191.76,4.72288834]
[1736358497699,12.429689,191.84,191.76,5.0]
[1736358497902,8.0372,191.9,191.76,5.0]
[1736358498240,31.395584,191.89,191.77,4.72288834]
[1736358498420,7.6187,191.89,191.81,4.72288834]
[1736358498605,7.6187,191.89,191.82,5.0]
[1736358499111,7.5104,191.96,191.81,4.72288834]
[1736358499433,20.0,191.86,191.82,4.72288834]
[1736358499637,20.0,191.86,191.83,4.72288834]
[1736358499805,8.0372,191.89,191.83,4.72288834]
[1736358500010,8.0372,191.89,191.82,4.72288834]
[1736358500234,8.0372,191.89,191.82,9.72288834]
[1736358500535,20.0,191.86,191.82,4.72288834]
[1736358500713,20.0,191.86,191.82,9.72288834]
[1736358500907,20.0,191.86,191.83,4.72288834]
[1736358501337,8.0372,191.89,191.84,4.72288834]
[1736358501507,8.0372,191.89,191.86,4.72288834]
[1736358501914,20.0,191.93,191.84,11.59628834]
[1736358502135,8.0372,191.98,191.87,4.72288834]
[1736358502434,8.0372,191.98,191.92,4.72288834]
[1736358502739,8.0372,191.98,191.94,4.72288834]
[1736358502922,20.0,191.95,191.93,9.72288834]
[1736358503119,0.06763027,192.03,191.95,9.72288834]
[1736358503331,0.06763027,192.03,191.97,4.72288834]
[1736358503526,20.06763027,192.03,191.97,9.72288834]
[1736358503734,51.200484,191.99,191.86,9.72288834]
[1736358503937,51.200484,191.99,191.84,6.59628834]
[1736358504114,20.0,191.94,191.84,11.59628834]
[1736358504317,7.4236,191.99,191.88,9.72288834]
[1736358504518,7.4236,191.99,191.84,11.59628834]
[1736358504718,20.0,191.92,191.84,1.8734]
[1736358504915,20.0,191.92,191.84,6.59628834]
[1736358505533,9.4841689,191.99,191.87,5.0]
[1736358505833,11.0361,192.05,191.9,9.72288834]
[1736358506036,0.06763027,191.98,191.89,5.0]
[1736358506212,20.0,191.95,191.85,9.72288834]
[1736358506413,20.0,191.95,191.84,1.8734]
[1736358507143,22.11662309,192.03,191.84,1.8734]
[1736358507144,20.0,191.96,191.84,1.8734]
[1736358507443,23.776884,191.95,191.84,6.8734]
[1736358507613,30.0,192.02,191.87,4.72288834]
[1736358507812,20.0,192.03,191.88,5.0]
[1736358508039,20.0,192.0,191.88,9.72288834]
[1736358508338,0.06763027,191.99,191.92,9.72288834]
[1736358508541,0.06763027,191.99,191.92,5.0]
[1736358508712,0.06763027,191.99,191.9,9.72288834]
[1736358508912,0.06763027,191.99,191.89,4.72288834]
[1736358509113,0.06763027,191.99,191.91,9.72288834]
[1736358509551,20.06763027,191.99,191.91,9.72288834]
[1736358510052,0.06763027,191.99,191.94,9.72288834]
[1736358510338,20.0,192.0,191.92,9.72288834]
[1736358510546,23.84451427,192.02,191.92,9.72288834]
[1736358510716,23.84451427,192.02,191.91,4.72288834]
[1736358511044,23.84451427,192.02,191.9,4.72288834]
[1736358511218,20.0,191.99,191.9,9.72288834]
[1736358511418,20.0,191.99,191.92,5.0]
[1736358511611,20.0,191.99,191.92,7.8002]
[1736358511821,20.0,191.99,191.9,9.72288834]
[1736358512138,20.0,191.99,191.93,5.0]
[1736358512342,20.0,191.99,191.94,5.0]
[1736358512518,0.06763027,192.02,191.96,9.72288834]
[1736358512846,0.06763027,192.02,191.97,5.0]
[1736358513016,20.0,192.0,191.98,4.72288834]
[1736358513219,0.06763027,192.07,191.98,4.72288834]
[1736358513425,0.06763027,192.07,192.01,4.72288834]
[1736358513623,0.06763027,192.07,191.99,5.0]
[1736358513849,0.06763027,192.07,192.0,9.72288834]
[1736358514143,20.06763027,192.07,192.01,5.0]
[1736358514362,8.0811,192.15,192.03,9.72288834]
[1736358514529,0.06763027,192.13,192.03,9.72288834]
[1736358514733,0.06763027,192.13,192.08,9.72288834]
[1736358515036,39.1473927,192.2,192.06,4.72288834]
[1736358515241,20.0,192.17,192.05,4.72288834]
[1736358515442,20.0,192.09,192.03,4.72288834]
[1736358515621,20.0,192.09,192.05,4.72288834]
[1736358515825,20.0,192.09,192.05,9.72288834]
[1736358516136,20.0,192.14,192.06,4.72288834]
[1736358516452,20.87036,192.17,192.07,9.72288834]
[1736358516829,20.87036,192.17,192.09,4.72288834]
[1736358517149,20.0,192.14,192.08,1.9433]
[1736358517336,20.0,192.14,192.08,6.66618834]
[1736358517528,20.87036,192.17,192.08,1.9433]
[1736358517851,20.0,192.13,192.08,1.9433]
[1736358518231,20.0,192.09,192.08,1.9433]
[1736358518423,20.0,192.09,192.02,6.9433]
[1736358518628,20.0,192.05,192.02,1.9433]
[1736358519219,32.13172701,192.15,192.02,1.9433]
[1736358519433,30.0,192.15,192.02,11.66618834]
[1736358519633,20.0,192.12,192.02,1.9433]
[1736358520552,20.0,192.11,192.02,6.66618834]
[1736358520776,20.0,192.11,192.04,4.72288834]
[1736358521050,20.87036,192.17,192.07,4.72288834]
[1736358521220,20.0,192.13,192.04,5.0]
[1736358521426,20.87036,192.17,192.03,9.72288834]
[1736358521731,20.0,192.13,192.06,9.72288834]
[1736358521931,22.94420156,192.17,192.07,9.72288834]
[1736358522135,22.94420156,192.17,192.05,4.72288834]
[1736358522136,20.0,192.14,192.05,4.72288834]
[1736358522427,20.0,192.14,192.04,5.0]
[1736358522625,20.0,192.14,192.03,9.72288834]
[1736358522830,20.0,192.09,192.05,4.72288834]
[1736358523057,20.0,192.09,192.03,9.72288834]
[1736358523228,20.0,192.09,192.02,6.66618834]